fUSD/lending_fUSD_20260703
["ID","MTS","AMOUNT","RATE_DAILY","PERIOD"]
[426939367,1783032642000,-1000.0,0.00028467,2]
[426939290,1783032642000,-2751.6357,0.00027613,14]
[426939366,1783032642000,-1000.0,0.00028452,2]
[426939364,1783032642000,-1000.0,0.00028391,2]
[426939354,1783032642000,-485.0,0.00028194,7]
[426939327,1783032642000,-730.32948472,0.00028,60]
[426939365,1783032642000,-459.40802069,0.00028402,2]
[426939323,1783032642000,-10148.80963007,0.00028,5]
[426939325,1783032642000,-40513.21,0.00028,2]
[426939283,1783032642000,-181.8222043,0.00027593,2]
[426939282,1783032642000,-596.44935934,0.00027593,2]
[426939287,1783032642000,-210.74107152,0.00027593,2]
[426939288,1783032642000,-289.31,0.000276,7]
[426939291,1783032642000,-276.78469097,0.00027618,2]
[426939303,1783032642000,-5000.0,0.00027855,7]
[426939295,1783032642000,-151.0,0.00027798,5]
[426939293,1783032642000,-485.0,0.00027711,7]
[426939292,1783032642000,-648.34,0.00027711,7]
[426939300,1783032642000,-158.0,0.0002784,2]
[426939305,1783032642000,-648.34,0.00027872,2]
[426939294,1783032642000,-150.0,0.00027798,5]
[426939302,1783032642000,-547.0,0.0002784,2]
[426939289,1783032642000,-2033.68265174,0.00027613,14]
[426939297,1783032642000,-169.00435228,0.00027803,2]
[426939301,1783032642000,-241.0,0.0002784,2]
[426939309,1783032642000,-649.0,0.00027918,2]
[426939314,1783032642000,-2114.8534468,0.00027986,2]
[426939316,1783032642000,-383.0,0.00028,2]
[426939312,1783032642000,-150.0,0.00027973,2]
[426939318,1783032642000,-255.0,0.00028,2]
[426939307,1783032642000,-155.0017199,0.00027873,120]
[426939311,1783032642000,-568.23,0.00027925,2]
[426939298,1783032642000,-603.46,0.00027827,120]
[426939310,1783032642000,-163.0,0.00027918,2]
[426939320,1783032642000,-336.0,0.00028,2]
[426939306,1783032642000,-485.0,0.00027872,2]
[426939308,1783032642000,-237.18007815,0.00027913,2]
[426939296,1783032642000,-625.45803585,0.00027803,2]
[426939394,1783032643000,-177.30294602,0.0002893,2]
[426939410,1783032643000,-1384.5,0.00029,25]
[426939396,1783032643000,-971.54532753,0.00028944,2]
[426939403,1783032643000,-500.0,0.00029,7]
[426939401,1783032643000,-500.0,0.00028987,90]
[426939405,1783032643000,-399.0,0.00029,2]
[426939409,1783032643000,-1622.16,0.00029,25]
[426939406,1783032643000,-276.77,0.00029,7]
[426939408,1783032643000,-4519.07,0.00029,25]
[426939407,1783032643000,-5480.93,0.00029,25]
[426939411,1783032643000,-255.0,0.00029,2]
[426939404,1783032643000,-4754.275,0.00029,2]
[426939418,1783032643000,-500.0,0.00029,7]
[426939412,1783032643000,-289.9,0.00029,30]
[426939413,1783032643000,-240.69,0.00029,30]
[426939414,1783032643000,-150.0,0.00029,7]
[426939417,1783032643000,-150.0,0.00029,7]
[426939415,1783032643000,-353.75212558,0.00029,2]
[426939416,1783032643000,-150.0,0.00029,7]
[426939425,1783032643000,-200.0,0.00029,2]
[426939419,1783032643000,-200.0,0.00029,2]
[426939420,1783032643000,-200.0,0.00029,2]
[426939422,1783032643000,-500.0,0.00029,7]
[426939421,1783032643000,-200.0,0.00029,2]
[426939393,1783032643000,-323.20763033,0.0002893,2]
[426939402,1783032643000,-500.0,0.00029,7]
[426939395,1783032643000,-439.36062596,0.0002893,2]
[426939378,1783032643000,-502.09,0.00028767,2]
[426939391,1783032643000,-1000.0,0.00028924,2]
[426939375,1783032643000,-1000.0,0.00028696,2]
[426939374,1783032643000,-1348.22543929,0.00028646,15]
[426939371,1783032643000,-568.23,0.0002861,2]
[426939369,1783032643000,-1000.0,0.00028589,2]
[426939368,1783032643000,-1000.0,0.00028543,2]
[426939373,1783032643000,-625.45803585,0.00028625,2]
[426939370,1783032643000,-84668.71910636,0.000286,7]
[426939372,1783032643000,-1000.0,0.00028619,2]
[426939376,1783032643000,-200.0,0.00028726,2]
[426939382,1783032643000,-155.02108301,0.00028803,120]
[426939379,1783032643000,-1000.0,0.00028772,2]
[426939377,1783032643000,-1000.0,0.00028726,2]
[426939397,1783032643000,-1108.63717937,0.00028944,2]
[426939380,1783032643000,-154.98925467,0.00028776,2]
[426939387,1783032643000,-373.29,0.00028885,30]
[426939384,1783032643000,-152.0,0.00028858,5]
[426939385,1783032643000,-185.3,0.00028862,30]
[426939383,1783032643000,-1000.0,0.00028848,2]
[426939386,1783032643000,-1000.0,0.00028863,2]
[426939389,1783032643000,-169.00435228,0.00028899,2]
[426939399,1783032643000,-500.0,0.00028987,90]
[426939400,1783032643000,-500.0,0.00028987,90]
[426939390,1783032643000,-568.23,0.00028915,2]
[426939388,1783032643000,-625.45803585,0.00028899,2]
[426939398,1783032643000,-39158.23019902,0.0002897,6]
[426939392,1783032643000,-308.77956873,0.0002893,2]
[426939381,1783032643000,-2117.74,0.000288,7]
[426939423,1783032643000,-200.0,0.00029,2]
[426939427,1783032643000,-500.0,0.00029,7]
[426939426,1783032643000,-500.0,0.00029,7]
[426939458,1783032643000,-625.45803585,0.00029447,2]
[426939460,1783032643000,-3120.84,0.000296,2]
[426939463,1783032643000,-625.45803585,0.00029721,2]
[426939467,1783032643000,-1000.0,0.00029863,7]
[426939459,1783032643000,-169.00435228,0.00029447,2]
[426939466,1783032643000,-1000.0,0.00029863,7]
[426939461,1783032643000,-558.06,0.000296,7]
[426939464,1783032643000,-216.6671885,0.00029821,2]
[426939462,1783032643000,-2117.74,0.000297,7]
[426939465,1783032643000,-150.59046719,0.00029821,2]
[426939479,1783032643000,-468.69590051,0.000299,2]
[426939469,1783032643000,-1000.0,0.00029863,7]
[426939456,1783032643000,-2114.8534468,0.00029389,2]
[426939474,1783032643000,-468.69590066,0.000299,2]
[426939480,1783032643000,-468.69590051,0.000299,2]
[426939470,1783032643000,-1000.0,0.00029863,7]
[426939473,1783032643000,-1617.98708688,0.00029863,7]
[426939472,1783032643000,-1000.0,0.00029863,7]
[426939475,1783032643000,-468.69590051,0.000299,2]
[426939476,1783032643000,-468.69590051,0.000299,2]
[426939477,1783032643000,-468.69590051,0.000299,2]
[426939478,1783032643000,-468.69590051,0.000299,2]
[426939483,1783032643000,-468.69590051,0.000299,2]
[426939482,1783032643000,-468.69590051,0.000299,2]
[426939481,1783032643000,-468.69590051,0.000299,2]
[426939424,1783032643000,-500.0,0.00029,7]
[426939468,1783032643000,-1000.0,0.00029863,7]
[426939457,1783032643000,-372.0,0.00029391,10]
[426939471,1783032643000,-1000.0,0.00029863,7]
[426939446,1783032643000,-210292.51722556,0.00029,5]
[426939430,1783032643000,-500.0,0.00029,7]
[426939452,1783032643000,-625.45803585,0.00029173,2]
[426939434,1783032643000,-200.0,0.00029,2]
[426939428,1783032643000,-500.0,0.00029,7]
[426939429,1783032643000,-500.0,0.00029,7]
[426939435,1783032643000,-333.09,0.00029,2]
[426939433,1783032643000,-1018.43,0.00029,2]
[426939432,1783032643000,-532.11,0.00029,7]
[426939437,1783032643000,-182.41,0.00029,2]
[426939436,1783032643000,-566.63985286,0.00029,2]
[426939438,1783032643000,-500.0,0.00029,7]
[426939440,1783032643000,-500.0,0.00029,7]
[426939441,1783032643000,-500.0,0.00029,7]
[426939431,1783032643000,-500.0,0.00029,7]
[426939439,1783032643000,-500.0,0.00029,7]
[426939447,1783032643000,-289.31,0.00029,7]
[426939443,1783032643000,-500.0,0.00029,7]
[426939454,1783032643000,-568.23,0.00029295,2]
[426939451,1783032643000,-174.0,0.00029,2]
[426939450,1783032643000,-164.29,0.00029,7]
[426939455,1783032643000,-150.0,0.00029372,2]
[426939449,1783032643000,-160.37394455,0.00029,10]
[426939453,1783032643000,-188.98,0.00029222,30]
[426939445,1783032643000,-19841.21859133,0.00029,2]
[426939444,1783032643000,-1000.0,0.00029,2]
[426939442,1783032643000,-500.0,0.00029,7]
[426939448,1783032643000,-1256.62575978,0.00029,7]
[426939527,1783032644000,-151.0,0.000301,7]
[426939526,1783032644000,-151.0,0.000301,7]
[426939525,1783032644000,-184.614653,0.000301,7]
[426939519,1783032644000,-396.027282,0.0003009,7]
[426939520,1783032644000,-151.0,0.0003009,7]
[426939521,1783032644000,-1366492.85810665,0.000301,7]
[426939517,1783032644000,-396.027282,0.0003009,7]
[426939528,1783032644000,-396.027282,0.000301,7]
[426939518,1783032644000,-396.027282,0.0003009,7]
[426939505,1783032644000,-426.34890289,0.0003,30]
[426939524,1783032644000,-184.614653,0.000301,7]
[426939522,1783032644000,-184.614653,0.000301,7]
[426939523,1783032644000,-184.614653,0.000301,7]
[426939547,1783032644000,-6855.010299,0.00030137,7]
[426939531,1783032644000,-396.027282,0.000301,7]
[426939533,1783032644000,-561.01545221,0.00030136,2]
[426939540,1783032644000,-6855.010299,0.00030137,7]
[426939539,1783032644000,-6855.010299,0.00030137,7]
[426939532,1783032644000,-151.0,0.000301,7]
[426939535,1783032644000,-212.7422,0.00030137,7]
[426939537,1783032644000,-6855.010299,0.00030137,7]
[426939536,1783032644000,-6855.010299,0.00030137,7]
[426939534,1783032644000,-151.0,0.00030137,7]
[426939530,1783032644000,-396.027282,0.000301,7]
[426939538,1783032644000,-6855.010299,0.00030137,7]
[426939515,1783032644000,-151.0,0.0003009,7]
[426939529,1783032644000,-396.027282,0.000301,7]
[426939516,1783032644000,-396.027282,0.0003009,7]
[426939490,1783032644000,-468.69590051,0.000299,2]
[426939514,1783032644000,-151.0,0.0003009,7]
[426939488,1783032644000,-468.69590051,0.000299,2]
[426939546,1783032644000,-6855.010299,0.00030137,7]
[426939485,1783032644000,-468.69590051,0.000299,2]
[426939484,1783032644000,-468.69590051,0.000299,2]
[426939492,1783032644000,-625.45803585,0.00029995,2]
[426939487,1783032644000,-468.69590051,0.000299,2]
[426939489,1783032644000,-468.69590051,0.000299,2]
[426939486,1783032644000,-468.69590051,0.000299,2]
[426939494,1783032644000,-800.0,0.0003,2]
[426939495,1783032644000,-800.0,0.0003,2]
[426939493,1783032644000,-169.00435228,0.00029995,2]
[426939497,1783032644000,-800.0,0.0003,2]
[426939496,1783032644000,-6940.01826685,0.0003,2]
[426939501,1783032644000,-800.0,0.0003,2]
[426939499,1783032644000,-800.0,0.0003,2]
[426939498,1783032644000,-800.0,0.0003,2]
[426939500,1783032644000,-800.0,0.0003,2]
[426939502,1783032644000,-800.0,0.0003,2]
[426939503,1783032644000,-215.21189417,0.0003,7]
[426939504,1783032644000,-800.0,0.0003,2]
[426939507,1783032644000,-32410.37,0.0003,2]
[426939512,1783032644000,-184.614653,0.0003009,7]
[426939510,1783032644000,-184.614653,0.0003009,7]
[426939509,1783032644000,-244566.47079453,0.0003009,2]
[426939513,1783032644000,-184.614653,0.0003009,7]
[426939506,1783032644000,-40920.94095876,0.0003,5]
[426939511,1783032644000,-184.614653,0.0003009,7]
[426939508,1783032644000,-818.01641718,0.0003,14]
[426939550,1783032644000,-6493.676491,0.00030137,7]
[426939491,1783032644000,-514.06560759,0.00029985,2]
[426939552,1783032644000,-6493.676491,0.00030137,7]
[426939577,1783032644000,-800.0,0.000305,2]
[426939579,1783032644000,-800.0,0.000305,2]
[426939580,1783032644000,-2013.0,0.000305,2]
[426939581,1783032644000,-1196.68769755,0.0003051,2]
[426939584,1783032644000,-209.36,0.00030557,120]
[426939582,1783032644000,-625.45803585,0.00030543,2]
[426939583,1783032644000,-169.00435228,0.00030543,2]
[426939585,1783032644000,-152.0,0.0003058,6]
[426939586,1783032644000,-558.06,0.000306,7]
[426939587,1783032644000,-2117.74,0.000306,7]
[426939589,1783032644000,-245.47,0.00030746,30]
[426939588,1783032644000,-242.13173095,0.00030642,3]
[426939591,1783032644000,-625.45803591,0.00030817,2]
[426939601,1783032644000,-457.92,0.00031006,2]
[426939590,1783032644000,-2114.8534468,0.00030791,2]
[426939593,1783032644000,-297.0,0.00030873,10]
[426939602,1783032644000,-1427.0,0.00031043,5]
[426939592,1783032644000,-150.0,0.00030841,2]
[426939594,1783032644000,-3120.85,0.0003097,2]
[426939595,1783032644000,-500.0,0.00030999,120]
[426939597,1783032644000,-216.69616408,0.00031,7]
[426939599,1783032644000,-800.0,0.00031,2]
[426939598,1783032644000,-1000.0,0.00031,7]
[426939600,1783032644000,-13000.0,0.00031,2]
[426939603,1783032644000,-245.47,0.0003105,30]
[426939604,1783032644000,-169.00435245,0.00031091,2]
[426939543,1783032644000,-6855.010299,0.00030137,7]
[426939575,1783032644000,-624.01918282,0.000305,2]
[426939576,1783032644000,-800.0,0.000305,2]
[426939596,1783032644000,-800.0,0.00031,2]
[426939573,1783032644000,-172.666,0.00030455,26]
[426939572,1783032644000,-4482.732,0.00030455,26]
[426939548,1783032644000,-6493.676491,0.00030137,7]
[426939549,1783032644000,-6493.676491,0.00030137,7]
[426939542,1783032644000,-6855.010299,0.00030137,7]
[426939544,1783032644000,-6855.010299,0.00030137,7]
[426939545,1783032644000,-6855.010299,0.00030137,7]
[426939551,1783032644000,-6493.676491,0.00030137,7]
[426939555,1783032644000,-6493.676491,0.00030137,7]
[426939553,1783032644000,-6493.676491,0.00030137,7]
[426939556,1783032644000,-6493.676491,0.00030137,7]
[426939557,1783032644000,-6493.676491,0.00030137,7]
[426939565,1783032644000,-3120.84,0.00030285,2]
[426939561,1783032644000,-161.0,0.0003016,2]
[426939559,1783032644000,-6493.676491,0.00030137,7]
[426939541,1783032644000,-6855.010299,0.00030137,7]
[426939560,1783032644000,-245.47,0.00030137,30]
[426939554,1783032644000,-6493.676491,0.00030137,7]
[426939574,1783032644000,-800.0,0.000305,2]
[426939578,1783032644000,-800.0,0.000305,2]
[426939567,1783032644000,-500.0,0.00030439,120]
[426939569,1783032644000,-500.0,0.00030439,7]
[426939570,1783032644000,-33667.45268257,0.0003044,7]
[426939562,1783032644000,-365.0,0.0003016,2]
[426939564,1783032644000,-625.45803585,0.00030269,2]
[426939568,1783032644000,-500.0,0.00030439,120]
[426939558,1783032644000,-6493.676491,0.00030137,7]
[426939571,1783032644000,-245.47,0.00030441,30]
[426939563,1783032644000,-154.98925467,0.00030236,2]
[426939566,1783032644000,-500.0,0.00030439,120]
[426939638,1783032645000,-259.72419602,0.00031858,30]
[426939632,1783032645000,-514.06560759,0.0003172,2]
[426939637,1783032645000,-150.0,0.00031858,30]
[426939645,1783032645000,-167.1866142,0.00031858,30]
[426939642,1783032645000,-154.32701166,0.00031858,30]
[426939641,1783032645000,-150.0,0.00031858,30]
[426939640,1783032645000,-150.0,0.00031858,30]
[426939643,1783032645000,-157.0980069,0.00031858,30]
[426939644,1783032645000,-150.0,0.00031858,30]
[426939633,1783032645000,-662.78,0.00031781,30]
[426939636,1783032645000,-33667.45268257,0.0003185,7]
[426939656,1783032645000,-2117.74,0.00032,7]
[426939646,1783032645000,-150.0,0.00031858,30]
[426939650,1783032645000,-150.0,0.00031984,30]
[426939647,1783032645000,-150.0,0.00031858,30]
[426939649,1783032645000,-245.47,0.00031963,30]
[426939652,1783032645000,-800.0,0.00032,5]
[426939648,1783032645000,-2774.71224642,0.0003186,30]
[426939657,1783032645000,-5000.0,0.00032,2]
[426939655,1783032645000,-184609.68169914,0.00032,2]
[426939653,1783032645000,-182.72727272,0.00032,7]
[426939651,1783032645000,-19285.1419,0.00032,2]
[426939629,1783032645000,-151.0,0.00031646,2]
[426939658,1783032645000,-1771.90754046,0.00032,2]
[426939639,1783032645000,-150.0,0.00031858,30]
[426939635,1783032645000,-642.78,0.00031781,7]
[426939616,1783032645000,-1049.67121807,0.00031435,2]
[426939628,1783032645000,-360.43,0.00031605,3]
[426939654,1783032645000,-800.0,0.00032,5]
[426939608,1783032645000,-652.0,0.00031279,2]
[426939612,1783032645000,-179.2683589,0.000314,2]
[426939607,1783032645000,-709.0,0.0003126,2]
[426939606,1783032645000,-459.40802069,0.00031184,2]
[426939605,1783032645000,-558.23424611,0.0003115,2]
[426939611,1783032645000,-35548.10928622,0.0003136,2]
[426939609,1783032645000,-2117.74,0.000313,7]
[426939610,1783032645000,-245.47,0.00031355,30]
[426939613,1783032645000,-154.62552156,0.00031426,2]
[426939614,1783032645000,-1049.67121808,0.00031435,2]
[426939615,1783032645000,-1049.67121807,0.00031435,2]
[426939617,1783032645000,-1196.68769754,0.0003144,2]
[426939618,1783032645000,-153.0,0.00031485,7]
[426939619,1783032645000,-152.0,0.00031485,7]
[426939622,1783032645000,-170.14599951,0.000315,2]
[426939620,1783032645000,-800.0,0.000315,2]
[426939621,1783032645000,-800.0,0.000315,2]
[426939624,1783032645000,-558.06,0.000316,7]
[426939623,1783032645000,-173.89116102,0.00031507,15]
[426939625,1783032645000,-5209.9702215,0.000316,2]
[426939627,1783032645000,-5209.97022147,0.000316,2]
[426939630,1783032645000,-245.47,0.00031659,30]
[426939626,1783032645000,-5209.97022147,0.000316,2]
[426939634,1783032645000,-629.88,0.00031781,7]
[426939631,1783032645000,-154.98925467,0.00031695,2]
[426939668,1783032645000,-1700.64,0.00032232,7]
[426939663,1783032645000,-150.0,0.0003211,30]
[426939665,1783032645000,-2114.8534468,0.00032194,2]
[426939690,1783032645000,-589.093131,0.00032288,7]
[426939694,1783032645000,-658.072809,0.00032288,7]
[426939701,1783032645000,-500.0,0.00032294,120]
[426939696,1783032645000,-658.072809,0.00032288,7]
[426939695,1783032645000,-658.072809,0.00032288,7]
[426939698,1783032645000,-500.0,0.00032288,7]
[426939700,1783032645000,-307354.0,0.00032289,20]
[426939699,1783032645000,-151.0,0.00032288,7]
[426939697,1783032645000,-151.0,0.00032288,7]
[426939702,1783032645000,-500.0,0.00032294,120]
[426939704,1783032645000,-500.0,0.00032294,7]
[426939705,1783032645000,-150.0,0.000323,30]
[426939703,1783032645000,-500.0,0.00032294,120]
[426939707,1783032645000,-200.0,0.00032321,2]
[426939708,1783032645000,-200.0,0.00032347,2]
[426939716,1783032645000,-200.0,0.00032347,2]
[426939715,1783032645000,-200.0,0.00032347,2]
[426939706,1783032645000,-152.0,0.00032302,7]
[426939659,1783032645000,-11124.77547454,0.00032,2]
[426939710,1783032645000,-200.0,0.00032347,2]
[426939711,1783032645000,-200.0,0.00032347,2]
[426939714,1783032645000,-200.0,0.00032347,2]
[426939709,1783032645000,-200.0,0.00032347,2]
[426939713,1783032645000,-200.0,0.00032347,2]
[426939717,1783032645000,-200.0,0.00032347,2]
[426939689,1783032645000,-589.093131,0.00032288,7]
[426939687,1783032645000,-151.0,0.00032288,7]
[426939712,1783032645000,-200.0,0.00032347,2]
[426939691,1783032645000,-589.093131,0.00032288,7]
[426939662,1783032645000,-289.31,0.000321,7]
[426939688,1783032645000,-589.093131,0.00032288,7]
[426939666,1783032645000,-5664.73,0.00032232,7]
[426939661,1783032645000,-161.539999,0.000321,12]
[426939660,1783032645000,-467.0,0.00032,5]
[426939664,1783032645000,-12835.10194018,0.00032112,5]
[426939667,1783032645000,-1065.44,0.00032232,7]
[426939670,1783032645000,-307.92,0.00032232,7]
[426939676,1783032645000,-500.0,0.00032288,120]
[426939681,1783032645000,-851.483759,0.00032288,7]
[426939677,1783032645000,-151.0,0.00032288,7]
[426939675,1783032645000,-500.0,0.00032288,120]
[426939669,1783032645000,-26276.81,0.00032232,7]
[426939679,1783032645000,-851.483759,0.00032288,7]
[426939673,1783032645000,-500.0,0.00032288,120]
[426939684,1783032645000,-258.913443,0.00032288,7]
[426939685,1783032645000,-258.913443,0.00032288,7]
[426939683,1783032645000,-258.913443,0.00032288,7]
[426939693,1783032645000,-658.072809,0.00032288,7]
[426939682,1783032645000,-258.913443,0.00032288,7]
[426939672,1783032645000,-250.69,0.00032268,30]
[426939678,1783032645000,-851.483759,0.00032288,7]
[426939671,1783032645000,-150.0,0.00032237,30]
[426939680,1783032645000,-851.483759,0.00032288,7]
[426939692,1783032645000,-500.0,0.00032288,120]
[426939686,1783032645000,-151.0,0.00032288,7]
[426939743,1783032646000,-500.0,0.00032347,2]
[426939748,1783032646000,-200.0,0.00032347,2]
[426939751,1783032646000,-500.0,0.00032347,2]
[426939741,1783032646000,-500.0,0.00032347,2]
[426939744,1783032646000,-500.0,0.00032347,2]
[426939750,1783032646000,-500.0,0.00032347,2]
[426939746,1783032646000,-500.0,0.00032347,2]
[426939747,1783032646000,-500.0,0.00032347,2]
[426939755,1783032646000,-200.0,0.00032347,2]
[426939749,1783032646000,-200.0,0.00032347,2]
[426939763,1783032646000,-6493.676491,0.00032347,7]
[426939753,1783032646000,-200.0,0.00032347,2]
[426939752,1783032646000,-610.0,0.00032347,2]
[426939754,1783032646000,-200.0,0.00032347,2]
[426939759,1783032646000,-200.0,0.00032347,2]
[426939756,1783032646000,-200.0,0.00032347,2]
[426939740,1783032646000,-500.0,0.00032347,2]
[426939757,1783032646000,-200.0,0.00032347,2]
[426939745,1783032646000,-500.0,0.00032347,2]
[426939739,1783032646000,-500.0,0.00032347,2]
[426939723,1783032646000,-200.0,0.00032347,2]
[426939729,1783032646000,-200.0,0.00032347,2]
[426939762,1783032646000,-6493.676491,0.00032347,7]
[426939720,1783032646000,-200.0,0.00032347,2]
[426939728,1783032646000,-200.0,0.00032347,2]
[426939718,1783032646000,-200.0,0.00032347,2]
[426939721,1783032646000,-200.0,0.00032347,2]
[426939719,1783032646000,-200.0,0.00032347,2]
[426939726,1783032646000,-200.0,0.00032347,2]
[426939724,1783032646000,-200.0,0.00032347,2]
[426939722,1783032646000,-200.0,0.00032347,2]
[426939725,1783032646000,-200.0,0.00032347,2]
[426939727,1783032646000,-200.0,0.00032347,2]
[426939730,1783032646000,-200.0,0.00032347,2]
[426939732,1783032646000,-800.0,0.00032347,30]
[426939734,1783032646000,-500.0,0.00032347,2]
[426939735,1783032646000,-500.0,0.00032347,2]
[426939737,1783032646000,-500.0,0.00032347,2]
[426939736,1783032646000,-500.0,0.00032347,2]
[426939731,1783032646000,-800.0,0.00032347,30]
[426939733,1783032646000,-586.0,0.00032347,30]
[426939738,1783032646000,-500.0,0.00032347,2]
[426939761,1783032646000,-6493.676491,0.00032347,7]
[426939742,1783032646000,-500.0,0.00032347,2]
[426939760,1783032646000,-200.0,0.00032347,2]
[426939785,1783032646000,-800.0,0.000325,5]
[426939786,1783032646000,-263.9349192,0.00032548,2]
[426939782,1783032646000,-500.0,0.00032499,120]
[426939787,1783032646000,-150.0,0.00032565,30]
[426939796,1783032646000,-54201.31596152,0.00032682,2]
[426939795,1783032646000,-500.0,0.00032681,7]
[426939793,1783032646000,-500.0,0.00032681,120]
[426939792,1783032646000,-500.0,0.00032681,120]
[426939794,1783032646000,-500.0,0.00032681,120]
[426939797,1783032646000,-11790.16288755,0.00032682,2]
[426939799,1783032646000,-151.0,0.00032682,7]
[426939803,1783032646000,-195.687971,0.00032682,7]
[426939801,1783032646000,-314.198431,0.00032682,7]
[426939800,1783032646000,-314.198431,0.00032682,7]
[426939804,1783032646000,-314.198431,0.00032682,7]
[426939798,1783032646000,-201571.50731213,0.00032682,2]
[426939805,1783032646000,-195.687971,0.00032682,7]
[426939802,1783032646000,-314.198431,0.00032682,7]
[426939758,1783032646000,-200.0,0.00032347,2]
[426939784,1783032646000,-558.06,0.000325,7]
[426939781,1783032646000,-150.0,0.0003249,30]
[426939791,1783032646000,-500.0,0.00032681,120]
[426939777,1783032646000,-450.42,0.00032439,2]
[426939764,1783032646000,-151.0,0.00032347,7]
[426939783,1783032646000,-800.0,0.000325,5]
[426939768,1783032646000,-150.0,0.00032383,2]
[426939770,1783032646000,-283.63448364,0.00032426,2]
[426939767,1783032646000,-1196.68769754,0.0003237,2]
[426939771,1783032646000,-154.62552156,0.00032426,2]
[426939769,1783032646000,-20000.0,0.000324,2]
[426939765,1783032646000,-6493.676491,0.00032347,7]
[426939775,1783032646000,-450.42,0.00032437,2]
[426939772,1783032646000,-450.42,0.00032433,2]
[426939766,1783032646000,-150.0,0.00032363,30]
[426939780,1783032646000,-150.0,0.00032447,30]
[426939776,1783032646000,-450.42,0.00032439,2]
[426939790,1783032646000,-340.03,0.00032624,3]
[426939773,1783032646000,-450.42,0.00032435,2]
[426939789,1783032646000,-150.0,0.00032616,30]
[426939778,1783032646000,-450.45,0.00032441,2]
[426939788,1783032646000,-250.69,0.00032572,30]
[426939779,1783032646000,-450.42,0.00032441,2]
[426939774,1783032646000,-450.42,0.00032437,2]
[426939837,1783032647000,-223.0,0.0003269,2]
[426939835,1783032647000,-1164.13478716,0.0003269,2]
[426939836,1783032647000,-1362.0,0.0003269,2]
[426939824,1783032647000,-200.0,0.00032347,2]
[426939828,1783032647000,-776.506228,0.00032347,7]
[426939827,1783032647000,-200.0,0.00032347,2]
[426939839,1783032647000,-216.0,0.0003269,2]
[426939833,1783032647000,-396.027282,0.00032682,7]
[426939838,1783032647000,-955.614,0.0003269,2]
[426939850,1783032647000,-150.0,0.00032869,30]
[426939841,1783032647000,-159.12831,0.0003269,7]
[426939843,1783032647000,-623.5,0.00032734,7]
[426939845,1783032647000,-150.0,0.00032742,30]
[426939842,1783032647000,-2117.74,0.000327,7]
[426939844,1783032647000,-150.0,0.00032742,30]
[426939846,1783032647000,-150.0,0.00032742,30]
[426939849,1783032647000,-289.31,0.000328,7]
[426939848,1783032647000,-151.0,0.00032762,2]
[426939829,1783032647000,-790.14179113,0.00032682,7]
[426939840,1783032647000,-151.0,0.0003269,7]
[426939831,1783032647000,-396.027282,0.00032682,7]
[426939808,1783032647000,-151.0,0.00032682,7]
[426939826,1783032647000,-200.0,0.00032347,2]
[426939806,1783032647000,-195.687971,0.00032682,7]
[426939851,1783032647000,-697.79169757,0.00032877,10]